[Event "*** Titled Tuesday Blitz"]
[Site "Chess.com"]
[Date "2020.12.01"]
[Round "2"]
[White "RobertoJBM"]
[Black "WPWPWP-2015"]
[Result "0-1"]
[WhiteElo "2706"]
[BlackElo "2495"]
[TimeControl "180+1"]
[EndTime "10:20:12 PST"]
[Termination "WPWPWP-2015 won on time"]

1. d4 {[%clk 0:03:00.9]} 1... Nf6 {[%clk 0:02:57.9]} 2. c4 {[%clk 0:03:00.1]}
2... e6 {[%clk 0:02:57.7]} 3. Nc3 {[%clk 0:02:59.7]} 3... Bb4 {[%clk 0:02:57.1]}
4. Qc2 {[%clk 0:02:59.2]} 4... O-O {[%clk 0:02:55.8]} 5. a3 {[%clk 0:02:59.1]}
5... Bxc3+ {[%clk 0:02:54.9]} 6. Qxc3 {[%clk 0:03:00]} 6... d5 {[%clk
0:02:55.2]} 7. Bg5 {[%clk 0:02:59.5]} 7... dxc4 {[%clk 0:02:53.8]} 8. Qxc4
{[%clk 0:02:59.6]} 8... b6 {[%clk 0:02:53.9]} 9. Nf3 {[%clk 0:02:59.6]} 9... Ba6
{[%clk 0:02:53.8]} 10. Qa4 {[%clk 0:02:59.7]} 10... Qd7 {[%clk 0:02:37.3]} 11.
Qxd7 {[%clk 0:02:58.2]} 11... Nbxd7 {[%clk 0:02:37]} 12. e3 {[%clk 0:02:59.1]}
12... Bxf1 {[%clk 0:02:31.6]} 13. Rxf1 {[%clk 0:03:00]} 13... c5 {[%clk
0:02:31.4]} 14. Ke2 {[%clk 0:02:48.6]} 14... Ne4 {[%clk 0:02:29.8]} 15. Bh4
{[%clk 0:02:46.3]} 15... c4 {[%clk 0:02:22.9]} 16. Rac1 {[%clk 0:02:38.4]} 16...
b5 {[%clk 0:02:19.9]} 17. Rfd1 {[%clk 0:02:23.5]} 17... Rfc8 {[%clk 0:01:58.7]}
18. Nd2 {[%clk 0:02:04]} 18... Nxd2 {[%clk 0:01:48.7]} 19. Rxd2 {[%clk
0:02:04.9]} 19... Nb6 {[%clk 0:01:46.4]} 20. e4 {[%clk 0:02:02.3]} 20... f6
{[%clk 0:01:46.1]} 21. g4 {[%clk 0:01:57.3]} 21... Kf7 {[%clk 0:01:43.3]} 22.
Bg3 {[%clk 0:01:48.6]} 22... Na4 {[%clk 0:01:34.8]} 23. Rdc2 {[%clk 0:01:39.1]}
23... Rd8 {[%clk 0:01:32]} 24. Ke3 {[%clk 0:01:37]} 24... Rd7 {[%clk 0:01:30.3]}
25. f3 {[%clk 0:01:29.1]} 25... Rad8 {[%clk 0:01:28.4]} 26. Rd1 {[%clk
0:01:25.3]} 26... Nc5 {[%clk 0:01:27.3]} 27. Be1 {[%clk 0:01:21]} 27... Nd3
{[%clk 0:01:11.1]} 28. Bc3 {[%clk 0:01:20.9]} 28... e5 {[%clk 0:01:07]} 29. d5
{[%clk 0:01:20]} 29... Nc5 {[%clk 0:01:02.9]} 30. Ba5 {[%clk 0:01:07.3]} 30...
Rc8 {[%clk 0:01:01.1]} 31. h4 {[%clk 0:01:06.9]} 31... Nb3 {[%clk 0:00:59.6]}
32. Bc3 {[%clk 0:01:06.9]} 32... a5 {[%clk 0:00:59]} 33. f4 {[%clk 0:01:00.8]}
33... exf4+ {[%clk 0:00:54.4]} 34. Kxf4 {[%clk 0:01:01.7]} 34... Re8 {[%clk
0:00:51.4]} 35. g5 {[%clk 0:00:58.2]} 35... Nc5 {[%clk 0:00:50.8]} 36. Re2
{[%clk 0:00:56]} 36... Nd3+ {[%clk 0:00:48.6]} 37. Kf3 {[%clk 0:00:49.3]} 37...
b4 {[%clk 0:00:46.3]} 38. axb4 {[%clk 0:00:47.5]} 38... axb4 {[%clk 0:00:46.9]}
39. Bd4 {[%clk 0:00:48.1]} 39... b3 {[%clk 0:00:37.4]} 40. gxf6 {[%clk
0:00:44.4]} 40... gxf6 {[%clk 0:00:38.3]} 41. Re3 {[%clk 0:00:37.8]} 41... Nb4
{[%clk 0:00:34.7]} 42. Rc3 {[%clk 0:00:32.8]} 42... Rc8 {[%clk 0:00:34.1]} 43.
Be3 {[%clk 0:00:27.2]} 43... Nc2 {[%clk 0:00:32.9]} 44. Rc1 {[%clk 0:00:25.4]}
44... f5 {[%clk 0:00:30.2]} 45. R1xc2 {[%clk 0:00:17.7]} 45... bxc2 {[%clk
0:00:29.3]} 46. Rxc2 {[%clk 0:00:17.7]} 46... fxe4+ {[%clk 0:00:28.3]} 47. Kxe4
{[%clk 0:00:18.6]} 47... Re8+ {[%clk 0:00:24.9]} 48. Kd4 {[%clk 0:00:17.5]}
48... Red8 {[%clk 0:00:25.1]} 49. Rxc4 {[%clk 0:00:17.9]} 49... Rxd5+ {[%clk
0:00:24.9]} 50. Ke4 {[%clk 0:00:18.8]} 50... R5d7 {[%clk 0:00:23.8]} 51. Bg5
{[%clk 0:00:18.6]} 51... Re8+ {[%clk 0:00:23.4]} 52. Kf5 {[%clk 0:00:19.2]}
52... Rb8 {[%clk 0:00:22.6]} 53. b4 {[%clk 0:00:18.9]} 53... Rb5+ {[%clk
0:00:21.9]} 54. Kg4 {[%clk 0:00:19.3]} 54... Rdb7 {[%clk 0:00:17.5]} 55. Bd2
{[%clk 0:00:19.3]} 55... h5+ {[%clk 0:00:17.5]} 56. Kf4 {[%clk 0:00:19.7]} 56...
Ke6 {[%clk 0:00:17.4]} 57. Bc3 {[%clk 0:00:19.2]} 57... Rf7+ {[%clk 0:00:16.7]}
58. Ke4 {[%clk 0:00:19.8]} 58... Rb6 {[%clk 0:00:15.1]} 59. Be5 {[%clk
0:00:18.7]} 59... Rf1 {[%clk 0:00:14.2]} 60. Bf4 {[%clk 0:00:18.2]} 60... Re1+
{[%clk 0:00:13.8]} 61. Kf3 {[%clk 0:00:18]} 61... Rb5 {[%clk 0:00:13.3]} 62. Bg5
{[%clk 0:00:17.2]} 62... Kf5 {[%clk 0:00:12.7]} 63. Rf4+ {[%clk 0:00:16.6]}
63... Ke5 {[%clk 0:00:13.1]} 64. Rc4 {[%clk 0:00:16.8]} 64... Rb1 {[%clk
0:00:12.6]} 65. Bd2 {[%clk 0:00:16.3]} 65... Rb3+ {[%clk 0:00:12]} 66. Ke2
{[%clk 0:00:16.2]} 66... Kd5 {[%clk 0:00:12]} 67. Rf4 {[%clk 0:00:16.6]} 67...
Rb7 {[%clk 0:00:11.8]} 68. Rf5+ {[%clk 0:00:16.7]} 68... Kd4 {[%clk 0:00:11.6]}
69. Rxh5 {[%clk 0:00:17.6]} 69... Re7+ {[%clk 0:00:11.6]} 70. Kd1 {[%clk
0:00:18.1]} 70... Rb2 {[%clk 0:00:11.2]} 71. Kc1 {[%clk 0:00:18.1]} 71... Ra2
{[%clk 0:00:11.4]} 72. Rc5 {[%clk 0:00:18.4]} 72... Rf7 {[%clk 0:00:09.8]} 73.
Bc3+ {[%clk 0:00:18]} 73... Kd3 {[%clk 0:00:09.9]} 74. Kb1 {[%clk 0:00:18.9]}
74... Rc2 {[%clk 0:00:08.9]} 75. Bb2 {[%clk 0:00:18.2]} 75... Rf1+ {[%clk
0:00:08.1]} 76. Ka2 {[%clk 0:00:18.6]} 76... Re2 {[%clk 0:00:08.1]} 77. Kb3
{[%clk 0:00:18.7]} 77... Rb1 {[%clk 0:00:07.3]} 78. Rc3+ {[%clk 0:00:19.6]}
78... Ke4 {[%clk 0:00:07.3]} 79. Rc4+ {[%clk 0:00:19]} 79... Kd5 {[%clk
0:00:07.2]} 80. Rc5+ {[%clk 0:00:18.7]} 80... Kd6 {[%clk 0:00:07.2]} 81. Rc2
{[%clk 0:00:19.6]} 81... Re3+ {[%clk 0:00:07.4]} 82. Kc4 {[%clk 0:00:19.8]}
82... Rh1 {[%clk 0:00:07.2]} 83. Bd4 {[%clk 0:00:20.3]} 83... Rxh4 {[%clk
0:00:06]} 84. Rd2 {[%clk 0:00:20.9]} 84... Kc7 {[%clk 0:00:05.4]} 85. Kc5 {[%clk
0:00:20]} 85... Rb3 {[%clk 0:00:05.2]} 86. b5 {[%clk 0:00:20.2]} 86... Rh5+
{[%clk 0:00:05.3]} 87. Kc4 {[%clk 0:00:20.2]} 87... Rbxb5 {[%clk 0:00:05.5]} 88.
Re2 {[%clk 0:00:20]} 88... Kd7 {[%clk 0:00:05.4]} 89. Rf2 {[%clk 0:00:20]} 89...
Ra5 {[%clk 0:00:05.7]} 90. Rf7+ {[%clk 0:00:20.1]} 90... Ke8 {[%clk 0:00:06]}
91. Rb7 {[%clk 0:00:20.1]} 91... Ra4+ {[%clk 0:00:06.3]} 92. Kd3 {[%clk
0:00:19.9]} 92... Rh3+ {[%clk 0:00:05.7]} 93. Ke4 {[%clk 0:00:19.8]} 93... Rh4+
{[%clk 0:00:05.4]} 94. Ke5 {[%clk 0:00:20.4]} 94... Raxd4 {[%clk 0:00:06.1]} 0-1

[Event "*** Titled Tuesday Blitz"]
[Site "Chess.com"]
[Date "2020.12.01"]
[Round "2"]
[White "JustWatch000"]
[Black "TzoumpasAnastasis"]
[Result "1/2-1/2"]
[WhiteElo "2397"]
[BlackElo "2188"]
[TimeControl "180+1"]
[EndTime "10:20:40 PST"]
[Termination "Game drawn by stalemate"]

1. e4 {[%clk 0:03:00]} 1... c5 {[%clk 0:02:58.2]} 2. Nf3 {[%clk 0:03:00.3]} 2...
d6 {[%clk 0:02:57.6]} 3. d4 {[%clk 0:03:00.3]} 3... cxd4 {[%clk 0:02:57.5]} 4.
Nxd4 {[%clk 0:03:01.2]} 4... Nf6 {[%clk 0:02:57.4]} 5. Nc3 {[%clk 0:03:01.6]}
5... a6 {[%clk 0:02:57.5]} 6. f3 {[%clk 0:03:01.4]} 6... e6 {[%clk 0:02:56.4]}
7. Be3 {[%clk 0:03:01.7]} 7... Be7 {[%clk 0:02:56]} 8. Qd2 {[%clk 0:03:02.1]}
8... b5 {[%clk 0:02:55.2]} 9. a3 {[%clk 0:03:00.6]} 9... Bb7 {[%clk 0:02:54.1]}
10. g4 {[%clk 0:03:00.8]} 10... Nc6 {[%clk 0:02:48.7]} 11. g5 {[%clk 0:02:57.8]}
11... Nd7 {[%clk 0:02:47.6]} 12. h4 {[%clk 0:02:58]} 12... Qc7 {[%clk
0:02:44.6]} 13. O-O-O {[%clk 0:02:49.5]} 13... Nxd4 {[%clk 0:02:41.9]} 14. Bxd4
{[%clk 0:02:49.4]} 14... e5 {[%clk 0:02:31.6]} 15. Be3 {[%clk 0:02:48.1]} 15...
Nb6 {[%clk 0:02:24.8]} 16. Kb1 {[%clk 0:02:39.1]} 16... Nc4 {[%clk 0:02:18.2]}
17. Bxc4 {[%clk 0:02:38.6]} 17... Qxc4 {[%clk 0:02:16.5]} 18. b3 {[%clk
0:02:29.9]} 18... Qc8 {[%clk 0:02:04.8]} 19. h5 {[%clk 0:02:25.1]} 19... Qe6
{[%clk 0:02:01.5]} 20. g6 {[%clk 0:02:15.4]} 20... hxg6 {[%clk 0:02:00]} 21.
hxg6 {[%clk 0:02:16.3]} 21... O-O-O {[%clk 0:01:59.4]} 22. Nd5 {[%clk
0:02:10.6]} 22... Bxd5 {[%clk 0:01:48.6]} 23. exd5 {[%clk 0:02:11.5]} 23... Qd7
{[%clk 0:01:10.7]} 24. Rxh8 {[%clk 0:01:56.7]} 24... Rxh8 {[%clk 0:01:09.8]} 25.
gxf7 {[%clk 0:01:57.1]} 25... Rf8 {[%clk 0:01:03.8]} 26. Qa5 {[%clk 0:01:56.6]}
26... Qb7 {[%clk 0:01:03]} 27. f4 {[%clk 0:01:45.4]} 27... exf4 {[%clk
0:01:00.6]} 28. Bxf4 {[%clk 0:01:46.3]} 28... Rxf7 {[%clk 0:00:59.9]} 29. Qb4
{[%clk 0:01:37.7]} 29... Qc7 {[%clk 0:00:56.7]} 30. Rd3 {[%clk 0:01:34.9]} 30...
Kb8 {[%clk 0:00:43]} 31. Rc3 {[%clk 0:01:30.8]} 31... Rxf4 {[%clk 0:00:42.8]}
32. Rxc7 {[%clk 0:01:25.4]} 32... Rxb4 {[%clk 0:00:42.3]} 33. Rxe7 {[%clk
0:01:25.3]} 33... Rd4 {[%clk 0:00:40.8]} 34. Rxg7 {[%clk 0:01:25.6]} 34... Rxd5
{[%clk 0:00:40.6]} 35. Kb2 {[%clk 0:01:25.6]} 35... a5 {[%clk 0:00:39.4]} 36.
Kc3 {[%clk 0:01:25.1]} 36... Rc5+ {[%clk 0:00:38.7]} 37. Kb2 {[%clk 0:01:24.6]}
37... Rc7 {[%clk 0:00:38.3]} 38. Rg5 {[%clk 0:01:24]} 38... Rc5 {[%clk
0:00:37.7]} 39. Rg6 {[%clk 0:01:22.5]} 39... Kc7 {[%clk 0:00:36.8]} 40. Rg7+
{[%clk 0:01:22.9]} 40... Kc6 {[%clk 0:00:36.6]} 41. Ra7 {[%clk 0:01:22.8]} 41...
Kb6 {[%clk 0:00:35.8]} 42. Ra8 {[%clk 0:01:23.1]} 42... Rh5 {[%clk 0:00:33.4]}
43. Rb8+ {[%clk 0:01:22.4]} 43... Kc6 {[%clk 0:00:33.2]} 44. Rc8+ {[%clk
0:01:21.5]} 44... Kb6 {[%clk 0:00:33.2]} 45. Rg8 {[%clk 0:01:21.8]} 45... Rh2
{[%clk 0:00:32.2]} 46. Rg6 {[%clk 0:01:21.8]} 46... Kc5 {[%clk 0:00:32.2]} 47.
Rg5+ {[%clk 0:01:21.3]} 47... Kc6 {[%clk 0:00:32.2]} 48. Kc3 {[%clk 0:01:20.2]}
48... Rh3+ {[%clk 0:00:32.1]} 49. Kb2 {[%clk 0:01:20]} 49... Rh2 {[%clk
0:00:32.1]} 50. Rg3 {[%clk 0:01:20.2]} 50... Rf2 {[%clk 0:00:31.6]} 51. Kc3
{[%clk 0:01:19.5]} 51... b4+ {[%clk 0:00:30.7]} 52. axb4 {[%clk 0:01:18.5]}
52... axb4+ {[%clk 0:00:30.6]} 53. Kd3 {[%clk 0:01:17.9]} 53... Kc5 {[%clk
0:00:29.7]} 54. Rg5+ {[%clk 0:01:16.4]} 54... d5 {[%clk 0:00:29.5]} 55. Rg8
{[%clk 0:01:16.9]} 55... Rf3+ {[%clk 0:00:28.7]} 56. Ke2 {[%clk 0:01:17.1]}
56... Rh3 {[%clk 0:00:28.4]} 57. Rc8+ {[%clk 0:01:17.3]} 57... Kd4 {[%clk
0:00:28.1]} 58. Kd2 {[%clk 0:01:14.6]} 58... Rh2+ {[%clk 0:00:28]} 59. Kc1
{[%clk 0:01:14.1]} 59... Rg2 {[%clk 0:00:25.4]} 60. Kb2 {[%clk 0:01:13.3]} 60...
Rg4 {[%clk 0:00:22.8]} 61. Rf8 {[%clk 0:01:09.4]} 61... Ke3 {[%clk 0:00:22.4]}
62. Rd8 {[%clk 0:01:08.1]} 62... d4 {[%clk 0:00:22]} 63. Kc1 {[%clk 0:01:03.5]}
63... Rg1+ {[%clk 0:00:21]} 64. Kb2 {[%clk 0:01:03.8]} 64... Rd1 {[%clk
0:00:20.9]} 65. Re8+ {[%clk 0:01:02.6]} 65... Kd2 {[%clk 0:00:20.6]} 66. Rb8
{[%clk 0:01:01]} 66... Rc1 {[%clk 0:00:19.8]} 67. Rxb4 {[%clk 0:00:47.9]} 67...
Rxc2+ {[%clk 0:00:18.3]} 68. Kb1 {[%clk 0:00:48]} 68... d3 {[%clk 0:00:18.2]}
69. Rb8 {[%clk 0:00:46.4]} 69... Rc7 {[%clk 0:00:17.2]} 70. Re8 {[%clk
0:00:46.2]} 70... Kd1 {[%clk 0:00:14.9]} 71. Kb2 {[%clk 0:00:44.6]} 71... d2
{[%clk 0:00:14.8]} 72. b4 {[%clk 0:00:44.7]} 72... Rc4 {[%clk 0:00:12.6]} 73.
Kb3 {[%clk 0:00:42.9]} 73... Kc1 {[%clk 0:00:12.2]} 74. Kxc4 {[%clk 0:00:15.3]}
74... d1=Q {[%clk 0:00:11.1]} 75. Re3 {[%clk 0:00:13.7]} 75... Qg4+ {[%clk
0:00:10.6]} 76. Kc5 {[%clk 0:00:11.5]} 76... Kc2 {[%clk 0:00:10.9]} 77. b5
{[%clk 0:00:10.7]} 77... Qg5+ {[%clk 0:00:11.1]} 78. Kd4 {[%clk 0:00:09.5]}
78... Qxb5 {[%clk 0:00:11]} 79. Rc3+ {[%clk 0:00:10]} 79... Kd2 {[%clk
0:00:10.3]} 80. Rc4 {[%clk 0:00:10.6]} 80... Qb6+ {[%clk 0:00:10.2]} 81. Rc5
{[%clk 0:00:07.2]} 81... Ke2 {[%clk 0:00:09.7]} 82. Kc4 {[%clk 0:00:07]} 82...
Qa7 {[%clk 0:00:09.8]} 83. Rd5 {[%clk 0:00:07.2]} 83... Ke3 {[%clk 0:00:09.9]}
84. Rc5 {[%clk 0:00:06.3]} 84... Ke4 {[%clk 0:00:10]} 85. Kb5 {[%clk 0:00:06]}
85... Qb7+ {[%clk 0:00:09.9]} 86. Kc4 {[%clk 0:00:06]} 86... Qb2 {[%clk
0:00:09.7]} 87. Rb5 {[%clk 0:00:03.4]} 87... Qa2+ {[%clk 0:00:09.6]} 88. Kc5
{[%clk 0:00:03.6]} 88... Kd3 {[%clk 0:00:09.4]} 89. Kb6 {[%clk 0:00:02.2]} 89...
Qc4 {[%clk 0:00:09.2]} 90. Ka5 {[%clk 0:00:02.4]} 90... Kc3 {[%clk 0:00:09]} 91.
Kb6 {[%clk 0:00:03.1]} 91... Qe6+ {[%clk 0:00:08.6]} 92. Ka5 {[%clk 0:00:02.9]}
92... Kc4 {[%clk 0:00:08.5]} 93. Rb4+ {[%clk 0:00:02.5]} 93... Kc5 {[%clk
0:00:08.5]} 94. Rb5+ {[%clk 0:00:03.4]} 94... Kc4 {[%clk 0:00:08.7]} 95. Rb4+
{[%clk 0:00:04.3]} 95... Kc3 {[%clk 0:00:09]} 96. Rb5 {[%clk 0:00:05.2]} 96...
Qa2+ {[%clk 0:00:08.8]} 97. Kb6 {[%clk 0:00:05.6]} 97... Qa8 {[%clk 0:00:08.6]}
98. Ra5 {[%clk 0:00:05.5]} 98... Qd8+ {[%clk 0:00:06.9]} 99. Kb5 {[%clk
0:00:05.5]} 99... Kd4 {[%clk 0:00:06.7]} 100. Ra6 {[%clk 0:00:05.7]} 100... Kd5
{[%clk 0:00:06.5]} 101. Rb6 {[%clk 0:00:05.7]} 101... Qd7+ {[%clk 0:00:06.2]}
102. Ka6 {[%clk 0:00:05.5]} 102... Qc7 {[%clk 0:00:06.3]} 103. Rb5+ {[%clk
0:00:03.8]} 103... Kc6 {[%clk 0:00:06.4]} 104. Rc5+ {[%clk 0:00:03.2]} 104...
Kxc5 {[%clk 0:00:06.5]} 1/2-1/2

[Event "*** Titled Tuesday Blitz"]
[Site "Chess.com"]
[Date "2020.12.01"]
[Round "3"]
[White "ZuchBolt"]
[Black "yourstrulyme"]
[Result "0-1"]
[WhiteElo "2200"]
[BlackElo "2489"]
[TimeControl "180+1"]
[EndTime "10:22:56 PST"]
[Termination "yourstrulyme won by resignation"]

1. e4 {[%clk 0:03:00.9]} 1... c6 {[%clk 0:02:56.8]} 2. d4 {[%clk 0:02:58.6]}
2... d5 {[%clk 0:02:56.3]} 3. Nd2 {[%clk 0:02:58.9]} 3... dxe4 {[%clk
0:02:55.8]} 4. Nxe4 {[%clk 0:02:59.8]} 4... Nf6 {[%clk 0:02:56.2]} 5. Nxf6+
{[%clk 0:02:59.3]} 5... exf6 {[%clk 0:02:57.1]} 6. c3 {[%clk 0:02:59.6]} 6...
Bd6 {[%clk 0:02:56.2]} 7. Bd3 {[%clk 0:02:59.9]} 7... O-O {[%clk 0:02:56]} 8.
Qc2 {[%clk 0:03:00.3]} 8... Re8+ {[%clk 0:02:56.1]} 9. Ne2 {[%clk 0:03:00.8]}
9... g6 {[%clk 0:02:55.7]} 10. Bd2 {[%clk 0:02:57.7]} 10... Nd7 {[%clk 0:02:41]}
11. O-O-O {[%clk 0:02:56.4]} 11... Nf8 {[%clk 0:02:23.9]} 12. h4 {[%clk
0:02:55.6]} 12... Be6 {[%clk 0:02:23.8]} 13. c4 {[%clk 0:02:48.8]} 13... b5
{[%clk 0:02:22]} 14. cxb5 {[%clk 0:02:40]} 14... cxb5 {[%clk 0:02:20.7]} 15. Kb1
{[%clk 0:02:39.5]} 15... Rc8 {[%clk 0:02:17.6]} 0-1

[Event "*** Titled Tuesday Blitz"]
[Site "Chess.com"]
[Date "2020.12.01"]
[Round "3"]
[White "bancsoo"]
[Black "parmupill123"]
[Result "1-0"]
[WhiteElo "2884"]
[BlackElo "2454"]
[TimeControl "180+1"]
[EndTime "10:23:08 PST"]
[Termination "bancsoo won by resignation"]

1. Nf3 {[%clk 0:03:00.9]} 1... Nf6 {[%clk 0:02:59.3]} 2. g3 {[%clk 0:03:00.8]}
2... e6 {[%clk 0:02:58.8]} 3. d4 {[%clk 0:02:58.9]} 3... d5 {[%clk 0:02:58.5]}
4. Bg2 {[%clk 0:02:59]} 4... Be7 {[%clk 0:02:59.2]} 5. O-O {[%clk 0:02:58.8]}
5... O-O {[%clk 0:02:59.8]} 6. c4 {[%clk 0:02:59.1]} 6... c6 {[%clk 0:02:57.7]}
7. Nc3 {[%clk 0:02:58.2]} 7... b6 {[%clk 0:02:56.6]} 8. Ne5 {[%clk 0:02:57.9]}
8... Bb7 {[%clk 0:02:56.2]} 9. e4 {[%clk 0:02:57.9]} 9... dxe4 {[%clk
0:02:55.2]} 10. Nxe4 {[%clk 0:02:57.8]} 10... Nxe4 {[%clk 0:02:51.9]} 11. Bxe4
{[%clk 0:02:58]} 11... Bf6 {[%clk 0:02:48.6]} 12. Bf4 {[%clk 0:02:54.3]} 12...
Qc8 {[%clk 0:02:47]} 13. Qh5 {[%clk 0:02:50.7]} 13... g6 {[%clk 0:02:43.9]} 14.
Qf3 {[%clk 0:02:50.1]} 14... Nd7 {[%clk 0:02:36.3]} 15. Nxc6 {[%clk 0:02:43.7]}
15... Bxc6 {[%clk 0:02:30.8]} 16. Bxc6 {[%clk 0:02:43.7]} 16... Bxd4 {[%clk
0:02:30.8]} 17. Bxa8 {[%clk 0:02:42.9]} 17... Qxa8 {[%clk 0:02:31.7]} 18. Qxa8
{[%clk 0:02:41.5]} 18... Rxa8 {[%clk 0:02:32.6]} 19. Rad1 {[%clk 0:02:41.6]}
19... e5 {[%clk 0:02:29.4]} 20. Be3 {[%clk 0:02:41.8]} 20... Bxe3 {[%clk
0:02:27.3]} 21. fxe3 {[%clk 0:02:39.2]} 21... Nc5 {[%clk 0:02:26.5]} 22. b4
{[%clk 0:02:38.5]} 22... Na6 {[%clk 0:02:18.3]} 23. Rd7 {[%clk 0:02:37.9]} 23...
Rf8 {[%clk 0:02:16.7]} 24. a3 {[%clk 0:02:35.9]} 1-0

[Event "*** Titled Tuesday Blitz"]
[Site "Chess.com"]
[Date "2020.12.01"]
[Round "3"]
[White "Msb2"]
[Black "Snegokhod"]
[Result "1-0"]
[WhiteElo "2838"]
[BlackElo "2447"]
[TimeControl "180+1"]
[EndTime "10:23:40 PST"]
[Termination "Msb2 won by resignation"]

1. d4 {[%clk 0:03:00.9]} 1... Nf6 {[%clk 0:02:59.5]} 2. Nc3 {[%clk 0:03:01.4]}
2... d5 {[%clk 0:02:59.1]} 3. Bf4 {[%clk 0:03:01.9]} 3... e6 {[%clk 0:02:58.6]}
4. Nb5 {[%clk 0:03:00.8]} 4... Na6 {[%clk 0:02:58.3]} 5. e3 {[%clk 0:03:01.1]}
5... c6 {[%clk 0:02:58]} 6. Nc3 {[%clk 0:03:01.5]} 6... Nc7 {[%clk 0:02:58]} 7.
Bd3 {[%clk 0:03:02.1]} 7... Bd6 {[%clk 0:02:57.9]} 8. Qf3 {[%clk 0:03:02.8]}
8... Bxf4 {[%clk 0:02:57.5]} 9. Qxf4 {[%clk 0:03:03.7]} 9... O-O {[%clk
0:02:57.6]} 10. g4 {[%clk 0:03:01.7]} 10... Nce8 {[%clk 0:02:56.6]} 11. g5
{[%clk 0:03:00.1]} 11... Nd7 {[%clk 0:02:56.8]} 12. Nf3 {[%clk 0:02:58.6]} 12...
Qc7 {[%clk 0:02:57]} 13. Qh4 {[%clk 0:02:56.3]} 13... g6 {[%clk 0:02:56.5]} 14.
Qg3 {[%clk 0:02:52.9]} 14... Qxg3 {[%clk 0:02:51.6]} 15. hxg3 {[%clk 0:02:53.8]}
15... Kg7 {[%clk 0:02:50.7]} 16. O-O-O {[%clk 0:02:51.8]} 16... Rh8 {[%clk
0:02:50.7]} 17. e4 {[%clk 0:02:50.7]} 17... h6 {[%clk 0:02:46.6]} 18. exd5
{[%clk 0:02:49.7]} 18... cxd5 {[%clk 0:02:42.3]} 19. Ne2 {[%clk 0:02:48.4]}
19... hxg5 {[%clk 0:02:41.3]} 20. Rxh8 {[%clk 0:02:47.5]} 20... Kxh8 {[%clk
0:02:41]} 21. Nxg5 {[%clk 0:02:48.4]} 21... Kg7 {[%clk 0:02:40.6]} 22. Rh1
{[%clk 0:02:49.1]} 22... Ndf6 {[%clk 0:02:37.7]} 23. Ng1 {[%clk 0:02:38]} 23...
Nd6 {[%clk 0:02:36.9]} 24. N1f3 {[%clk 0:02:38.2]} 24... Bd7 {[%clk 0:02:34.4]}
25. Ne5 {[%clk 0:02:38.4]} 25... Rh8 {[%clk 0:02:33.4]} 26. Rxh8 {[%clk
0:02:37.6]} 26... Kxh8 {[%clk 0:02:33.3]} 27. Ngxf7+ {[%clk 0:02:38.1]} 27...
Nxf7 {[%clk 0:02:33.6]} 28. Nxf7+ {[%clk 0:02:39]} 28... Kg7 {[%clk 0:02:34.1]}
29. Ne5 {[%clk 0:02:39.9]} 29... Be8 {[%clk 0:02:33.3]} 30. f3 {[%clk
0:02:39.3]} 30... g5 {[%clk 0:02:33.4]} 31. Kd2 {[%clk 0:02:38.9]} 31... Nd7
{[%clk 0:02:33.4]} 32. Nxd7 {[%clk 0:02:38.5]} 32... Bxd7 {[%clk 0:02:33.5]} 33.
Ke3 {[%clk 0:02:39.1]} 33... Kf6 {[%clk 0:02:34]} 34. f4 {[%clk 0:02:39.6]}
34... gxf4+ {[%clk 0:02:31.1]} 35. Kxf4 {[%clk 0:02:40.5]} 35... Be8 {[%clk
0:02:30.2]} 36. g4 {[%clk 0:02:40.6]} 36... Bd7 {[%clk 0:02:29]} 37. g5+ {[%clk
0:02:41]} 37... Ke7 {[%clk 0:02:28.3]} 38. Ke5 {[%clk 0:02:41.9]} 38... Be8
{[%clk 0:02:28.4]} 39. c3 {[%clk 0:02:40.6]} 39... Bd7 {[%clk 0:02:28.6]} 40.
Bh7 {[%clk 0:02:40]} 40... Be8 {[%clk 0:02:28.3]} 41. g6 {[%clk 0:02:40.3]}
41... Kf8 {[%clk 0:02:24.8]} 42. Kf6 {[%clk 0:02:40.5]} 1-0

[Event "*** Titled Tuesday Blitz"]
[Site "Chess.com"]
[Date "2020.12.01"]
[Round "3"]
[White "DouglasTrawz"]
[Black "gmcorrales"]
[Result "0-1"]
[WhiteElo "2513"]
[BlackElo "2790"]
[TimeControl "180+1"]
[EndTime "10:23:48 PST"]
[Termination "gmcorrales won by resignation"]

1. e4 {[%clk 0:03:00.9]} 1... c5 {[%clk 0:02:59.3]} 2. Nf3 {[%clk 0:03:00.2]}
2... d6 {[%clk 0:02:59.9]} 3. Bb5+ {[%clk 0:02:59.5]} 3... Nd7 {[%clk
0:02:58.7]} 4. Ba4 {[%clk 0:02:57.2]} 4... Nf6 {[%clk 0:02:57.9]} 5. O-O {[%clk
0:02:55.6]} 5... Nxe4 {[%clk 0:02:52.6]} 6. Re1 {[%clk 0:02:55.3]} 6... Nf6
{[%clk 0:02:52.2]} 7. d4 {[%clk 0:02:55]} 7... cxd4 {[%clk 0:02:52.5]} 8. Nxd4
{[%clk 0:02:54.8]} 8... a6 {[%clk 0:02:46.1]} 9. c4 {[%clk 0:02:54.1]} 9... g6
{[%clk 0:02:37.2]} 10. Bf4 {[%clk 0:02:23.6]} 10... e5 {[%clk 0:02:36.9]} 11. c5
{[%clk 0:01:54.8]} 11... Bg7 {[%clk 0:02:23.5]} 12. cxd6 {[%clk 0:01:54.2]}
12... O-O {[%clk 0:02:23.2]} 13. Bxe5 {[%clk 0:01:48.5]} 13... Nxe5 {[%clk
0:02:23.1]} 14. Rxe5 {[%clk 0:01:49.4]} 14... Qxd6 {[%clk 0:02:23]} 15. Re1
{[%clk 0:01:47.8]} 15... Ng4 {[%clk 0:02:16.2]} 16. Nf3 {[%clk 0:01:45.1]} 16...
Qxd1 {[%clk 0:02:16]} 17. Rxd1 {[%clk 0:01:44.5]} 17... Bxb2 {[%clk 0:02:16.9]}
0-1

[Event "*** Titled Tuesday Blitz"]
[Site "Chess.com"]
[Date "2020.12.01"]
[Round "3"]
[White "frederiksvane"]
[Black "Tssunami"]
[Result "1/2-1/2"]
[WhiteElo "2717"]
[BlackElo "2419"]
[TimeControl "180+1"]
[EndTime "10:24:12 PST"]
[Termination "Game drawn by repetition"]

1. e4 {[%clk 0:03:00.9]} 1... c5 {[%clk 0:02:42.1]} 2. Nf3 {[%clk 0:03:00.4]}
2... Nc6 {[%clk 0:02:40]} 3. Bb5 {[%clk 0:02:59.9]} 3... e6 {[%clk 0:02:36.9]}
4. O-O {[%clk 0:02:59.7]} 4... a6 {[%clk 0:02:36.5]} 5. Bxc6 {[%clk 0:02:59.4]}
5... bxc6 {[%clk 0:02:36.7]} 6. c4 {[%clk 0:02:52.3]} 6... d6 {[%clk 0:02:34.1]}
7. Nc3 {[%clk 0:02:51.6]} 7... e5 {[%clk 0:02:33.3]} 8. d3 {[%clk 0:02:49.8]}
8... Be7 {[%clk 0:02:29.8]} 9. a3 {[%clk 0:02:49.8]} 9... Nf6 {[%clk 0:02:29.3]}
10. h3 {[%clk 0:02:48.6]} 10... Rb8 {[%clk 0:02:26.6]} 11. Rb1 {[%clk
0:02:44.2]} 11... a5 {[%clk 0:02:25.3]} 12. Bd2 {[%clk 0:02:42.4]} 12... O-O
{[%clk 0:02:22.1]} 13. Qa4 {[%clk 0:02:41.1]} 13... Nh5 {[%clk 0:02:18.3]} 14.
Ne2 {[%clk 0:02:34.3]} 14... Be6 {[%clk 0:02:13.5]} 15. Qxc6 {[%clk 0:02:23.2]}
15... Bd7 {[%clk 0:02:07.5]} 16. Qa6 {[%clk 0:02:03.3]} 16... Ra8 {[%clk
0:02:01.5]} 17. Qb7 {[%clk 0:01:59.4]} 17... Rb8 {[%clk 0:01:54.8]} 18. Qa7
{[%clk 0:01:57.2]} 18... Ra8 {[%clk 0:01:54.6]} 19. Qb7 {[%clk 0:01:57.3]} 19...
Rb8 {[%clk 0:01:54.6]} 20. Qa6 {[%clk 0:01:50.6]} 20... Ra8 {[%clk 0:01:54.5]}
21. Qb7 {[%clk 0:01:46.9]} 1/2-1/2